fUST/lending_fUST_20240927
["ID","MTS","AMOUNT","RATE_DAILY","PERIOD"]
[339229192,1727380244327,-986.52,0.00021999,30]
[339229193,1727380244336,-500.0,0.00021999,120]
[339229194,1727380244345,-604.00328427,0.00021999,120]
[339229195,1727380244355,-986.52,0.00021999,30]
[339229196,1727380244364,-986.52,0.00021999,30]
[339229197,1727380244374,-986.52,0.00021999,30]
[339229198,1727380244383,-986.52,0.00021999,30]
[339229199,1727380244393,-986.52,0.00021999,30]
[339229200,1727380244402,-500.0,0.00021999,120]
[339229201,1727380244412,-986.52,0.00021999,30]
[339229202,1727380244421,-986.52,0.00021999,30]
[339229203,1727380244431,-500.0,0.00021999,120]
[339229204,1727380244440,-500.0,0.00021999,120]
[339229205,1727380244449,-629.04013236,0.00021999,120]
[339229206,1727380244460,-500.0,0.00021999,120]
[339229207,1727380244469,-500.0,0.00021999,120]
[339229208,1727380244480,-986.52,0.00021999,30]
[339229209,1727380244490,-986.52,0.00021999,30]
[339229210,1727380244499,-500.0,0.00021999,120]
[339229211,1727380244509,-986.52,0.00021999,30]
[339229212,1727380244519,-500.0,0.00021999,120]
[339229213,1727380244529,-986.52,0.00021999,30]
[339229214,1727380244538,-505.84105672,0.00021999,120]
[339229215,1727380244547,-396.51253655,0.00021999,120]
[339229216,1727380244558,-986.52,0.00021999,30]
[339229217,1727380244568,-986.52,0.00021999,30]
[339229218,1727380244578,-986.52,0.00021999,30]
[339229219,1727380244587,-986.74096066,0.00021999,30]
[339229220,1727380244598,-500.0,0.00021999,120]
[339229221,1727380244608,-393.22196267,0.00021999,120]
[339229222,1727380244618,-500.0,0.00021999,120]
[339229223,1727380244629,-500.0,0.00021999,120]
[339229224,1727380244639,-166.026231,0.00021999,7]
[339229225,1727380244650,-500.0,0.00021999,120]
[339229226,1727380244660,-500.0,0.00021999,120]
[339229227,1727380244669,-518.36715894,0.00021999,120]
[339229228,1727380244678,-528.1217026,0.00021999,120]
[339229229,1727380244687,-504.01293509,0.00021999,120]
[339229230,1727380244697,-647.98201812,0.00021999,120]
[339229231,1727380244706,-510.77839433,0.00021999,120]
[339229232,1727380244716,-502.52561091,0.00021999,120]
[339229233,1727380244727,-500.0,0.00021999,120]
[339229234,1727380244737,-500.0,0.00021999,120]
[339229235,1727380244747,-500.0,0.00021999,120]
[339229236,1727380244756,-500.0,0.00021999,120]
[339229237,1727380244766,-597.79,0.00021999,120]
[339229238,1727380244775,-500.0,0.00021999,120]
[339229239,1727380244784,-500.0,0.00021999,120]
[339229240,1727380244793,-506.31631683,0.00021999,120]
[339229241,1727380244802,-508.66414654,0.00021999,120]
[339229242,1727380244811,-500.0,0.00021999,120]
[339229243,1727380244821,-500.0,0.00021999,120]
[339229244,1727380244830,-500.0,0.00021999,120]
[339229245,1727380244839,-409.23853104,0.00021999,120]
[339229246,1727380244850,-308.39339211,0.00021999,120]
[339229247,1727380244859,-504.84670358,0.00021999,120]
[339229248,1727380244869,-529.06867486,0.00021999,120]
[339229249,1727380244879,-533.02025456,0.00021999,120]
[339229250,1727380244888,-151.0,0.00021999,7]
[339229251,1727380244898,-151.0,0.00021999,7]
[339229252,1727380244908,-506.81759227,0.00021999,120]
[339229253,1727380244918,-151.0,0.00021999,7]
[339229254,1727380244929,-203.678664,0.00021999,7]
[339229255,1727380244940,-500.0,0.00021999,120]
[339229256,1727380244950,-500.0,0.00021999,120]
[339229257,1727380244960,-503.24517051,0.00021999,120]
[339229258,1727380244971,-548.58652436,0.00021999,120]
[339229259,1727380244982,-500.0,0.00021999,60]
[339229260,1727380244992,-500.0,0.00021999,120]
[339229261,1727380245003,-263.37469876,0.00021999,120]
[339229262,1727380245014,-500.0,0.00021999,60]
[339229263,1727380245026,-374.30850215,0.00021999,60]
[339229264,1727380245036,-500.0,0.00021999,120]
[339229265,1727380245047,-396.85,0.00021999,120]
[339229266,1727380245056,-504.18264847,0.00021999,120]
[339229267,1727380245065,-513.04853029,0.00021999,120]
[339229268,1727380245082,-500.0,0.00021999,30]
[339229269,1727380245091,-500.0,0.00021999,120]
[339229270,1727380245100,-500.0,0.00021999,30]
[339229271,1727380245109,-500.0,0.00021999,120]
[339229272,1727380245118,-504.73746437,0.00021999,120]
[339229273,1727380245127,-500.0,0.00021999,30]
[339229274,1727380245137,-500.0,0.00021999,30]
[339229275,1727380245146,-500.0,0.00021999,30]
[339229276,1727380245155,-500.0,0.00021999,30]
[339229277,1727380245165,-500.0,0.00021999,30]
[339229278,1727380245174,-500.0,0.00021999,30]
[339229279,1727380245183,-500.0,0.00021999,30]
[339229280,1727380245193,-180.45878391,0.00021999,30]
[339229281,1727380245202,-474.96844635,0.00021999,120]
[339229282,1727380245212,-500.0,0.00021999,120]
[339229283,1727380245221,-500.0,0.00021999,120]
[339229284,1727380245231,-500.0,0.00021999,120]
[339229285,1727380245241,-500.0,0.00021999,120]
[339229286,1727380245250,-500.0,0.00021999,120]
[339229287,1727380245259,-500.0,0.00021999,120]
[339229288,1727380245269,-318.78,0.00021999,120]
[339229289,1727380245278,-500.0,0.00021999,120]
[339229290,1727380245288,-500.0,0.00021999,120]
[339229291,1727380245297,-500.0,0.00021999,120]
[339229292,1727380245306,-500.0,0.00021999,120]
[339229293,1727380245315,-500.0,0.00021999,120]
[339229294,1727380245331,-500.0,0.00021999,120]
[339229295,1727380245341,-615.05320917,0.00021999,120]
[339229296,1727380245352,-500.0,0.00021999,120]
[339229297,1727380245362,-514.98980411,0.00021999,120]
[339229298,1727380245371,-500.0,0.00021999,120]
[339229299,1727380245381,-500.0,0.00021999,120]
[339229300,1727380245391,-366.25936454,0.00021999,120]
[339229301,1727380245401,-1050.26,0.00021999,2]
[339229302,1727380245410,-1050.26,0.00021999,2]
[339229303,1727380245419,-1050.26,0.00021999,2]
[339229304,1727380245431,-1050.26,0.00021999,2]
[339229305,1727380245443,-1050.26,0.00021999,2]
[339229306,1727380245454,-1050.26,0.00021999,2]
[339229307,1727380245463,-502.79658034,0.00021999,120]
[339229308,1727380245474,-1050.26,0.00021999,2]
[339229309,1727380245487,-1050.26,0.00021999,2]
[339229310,1727380245497,-1050.26,0.00021999,2]
[339229311,1727380245507,-1050.26,0.00021999,2]
[339229312,1727380245518,-1050.26,0.00021999,2]
[339229313,1727380245529,-1050.26,0.00021999,2]
[339229314,1727380245538,-1050.26,0.00021999,2]
[339229315,1727380245549,-528.6371028,0.00021999,120]
[339229316,1727380245562,-1050.26,0.00021999,2]
[339229317,1727380245574,-1050.26,0.00021999,2]
[339229318,1727380245584,-1050.26,0.00021999,2]
[339229319,1727380245593,-1050.26,0.00021999,2]
[339229320,1727380245603,-1050.26,0.00021999,2]
[339229321,1727380245613,-1050.26,0.00021999,2]
[339229322,1727380245623,-503.97492249,0.00021999,120]
[339229323,1727380245744,-1050.26,0.00021999,2]
[339229324,1727380245754,-1050.26,0.00021999,2]
[339229325,1727380245764,-1050.26,0.00021999,2]
[339229327,1727380245774,-1050.26,0.00021999,2]
[339229328,1727380245784,-1050.36355683,0.00021999,2]
[339229329,1727380245793,-500.0,0.00021999,120]
[339229330,1727380245803,-507.52923771,0.00021999,120]
[339229331,1727380245813,-501.09977609,0.00021999,120]
[339229332,1727380245824,-25290.61,0.00021999,18]
[339229333,1727380245834,-25290.61,0.00021999,18]
[339229334,1727380245844,-25290.61,0.00021999,18]
[339229335,1727380245854,-25290.61,0.00021999,18]
[339229336,1727380245864,-15756.08769633,0.00021999,18]
[339229338,1727380246019,-9534.52230367,0.00021999,18]
[339229339,1727380246030,-25290.61,0.00021999,18]
[339229341,1727380246043,-500.0,0.00021999,120]
[339229342,1727380246053,-15971.26125414,0.00021999,18]
[339229343,1727380246064,-516.32022428,0.00021999,18]
[339229344,1727380246077,-892.22890917,0.00021999,18]
[339229345,1727380246089,-7910.79961241,0.00021999,18]
[339229347,1727380246099,-503.46727178,0.00021999,120]
[339229349,1727380246108,-25290.61,0.00021999,18]
[339229350,1727380246118,-25290.61,0.00021999,18]
[339229351,1727380246127,-432.99709698,0.00021999,120]
[339229352,1727380246137,-25290.61,0.00021999,18]
[339229354,1727380246147,-25290.61,0.00021999,18]
[339229355,1727380246157,-25290.61,0.00021999,18]
[339229356,1727380246167,-25290.61,0.00021999,18]
[339229357,1727380246176,-25290.61,0.00021999,18]
[339229358,1727380246187,-1061.63753922,0.00021999,18]
[339229359,1727380246199,-12760.0,0.00021999,18]
[339229361,1727380246211,-2923.94319773,0.00021999,18]
[339229376,1727381145898,-341.27309596,0.00018058,2]
[339229377,1727381154189,-158.72690404,0.00018058,2]
[339229378,1727381154210,-111.9553833,0.00018479,2]
[339229379,1727381238147,-354.76114291,0.00018479,2]
[339229380,1727381238170,-397.98,0.000191,2]
[339229381,1727381238191,-465.08582631,0.00019403,2]
[339229382,1727381238215,-300.0,0.00019571,2]
[339229383,1727381238238,-300.0,0.00019571,2]
[339229384,1727381238260,-24900.0,0.00019572,2]
[339229385,1727381238280,-169.203306,0.00019607,2]
[339229386,1727381238300,-318.1547084,0.00019694,2]
[339229387,1727381238320,-216.55849,0.00019923,2]
[339229388,1727381238339,-152.68017911,0.00019942,2]
[339229389,1727381238360,-2524.90752259,0.00020282,2]
[339229390,1727381238381,-465.00429132,0.00020373,2]
[339229391,1727381238403,-3204.998,0.00020382,2]
[339229392,1727381238424,-300.133,0.00020382,2]
[339229393,1727381238445,-1572.19429646,0.00020703,2]
[339229394,1727381238466,-256.0,0.00020779,2]
[339229395,1727381238486,-256.0,0.00020779,2]
[339229396,1727381238513,-256.0,0.00020779,2]
[339229397,1727381238540,-256.0,0.00020779,2]
[339229398,1727381238575,-256.0,0.00020779,2]
[339229399,1727381238597,-256.0,0.00020779,2]
[339229400,1727381238621,-256.0,0.00020779,2]
[339229401,1727381238646,-256.0,0.00020779,2]
[339229402,1727381238671,-256.0,0.00020779,2]
[339229403,1727381238697,-256.0,0.00020779,2]
[339229404,1727381238722,-256.0,0.00020779,2]
[339229405,1727381238750,-256.0,0.00020779,2]
[339229406,1727381238775,-256.0,0.00020779,2]
[339229407,1727381238799,-256.0,0.00020779,2]
[339229408,1727381238827,-153.0,0.00020779,2]
[339229409,1727381238852,-1572.19429643,0.00020795,2]
[339229410,1727381238876,-153.50098788,0.00020798,2]
[339229411,1727381238900,-500.0,0.00020798,2]
[339229412,1727381238923,-395.03202294,0.00020798,2]
[339229413,1727381238946,-500.0,0.00020798,2]
[339229414,1727381238971,-500.0,0.00020798,2]
[339229415,1727381238995,-500.0,0.00020798,2]
[339229416,1727381239021,-500.0,0.00020798,2]
[339229417,1727381239048,-500.0,0.00020798,2]
[339229418,1727381239077,-500.0,0.00020798,2]
[339229419,1727381239105,-500.0,0.00020798,2]
[339229420,1727381239131,-500.0,0.00020798,2]
[339229421,1727381239157,-500.0,0.00020798,2]
[339229422,1727381239181,-500.0,0.00020798,2]
[339229423,1727381239204,-500.0,0.00020798,2]
[339229424,1727381239228,-277.1585889,0.00020798,2]
[339229425,1727381244152,-222.8414111,0.00020798,2]
[339229426,1727381244177,-500.0,0.00020798,2]
[339229427,1727381244201,-500.0,0.00020798,2]
[339229428,1727381244225,-500.0,0.00020798,2]
[339229429,1727381244252,-500.0,0.00020798,2]
[339229430,1727381244276,-500.0,0.00020798,2]
[339229431,1727381244302,-500.0,0.00020798,2]
[339229432,1727381244329,-500.0,0.00020798,2]
[339229433,1727381244353,-500.0,0.00020798,2]
[339229434,1727381244376,-500.0,0.00020798,2]
[339229435,1727381244401,-500.0,0.00020798,2]
[339229436,1727381244426,-500.0,0.00020798,2]
[339229437,1727381244450,-500.0,0.00020798,2]
[339229438,1727381244474,-500.0,0.00020798,2]
[339229439,1727381244498,-500.0,0.00020798,2]
[339229440,1727381244523,-500.0,0.00020798,2]
[339229441,1727381244547,-500.0,0.00020798,2]
[339229442,1727381244741,-500.0,0.00020798,2]
[339229443,1727381244771,-500.0,0.00020798,2]
[339229444,1727381244794,-500.0,0.00020798,2]
[339229445,1727381244818,-500.0,0.00020798,2]
[339229446,1727381244841,-46.95561996,0.00020798,2]
[339229447,1727381248120,-343.86471228,0.00020798,2]
[339229450,1727381353142,-300.0,0.00018979,2]
[339229451,1727381353169,-300.0,0.00018979,2]
[339229452,1727381353191,-1000.0,0.0001898,2]
[339229453,1727381353213,-768.60428382,0.0001898,2]
[339229454,1727381359099,-231.39571618,0.0001898,2]
[339229455,1727381359120,-1000.0,0.0001898,2]
[339229456,1727381359141,-1000.0,0.0001898,2]
[339229457,1727381359166,-307.82284793,0.0001898,2]
[339229458,1727381371163,-692.17715207,0.0001898,2]
[339229459,1727381371189,-1000.0,0.0001898,2]
[339229460,1727381371210,-5.91703013,0.0001898,2]
[339229567,1727381439426,-994.08296987,0.0001898,2]
[339229568,1727381439435,-981.41170104,0.0001898,2]
[339229569,1727381439444,-358.18,0.000191,2]
[339229570,1727381439454,-861.88,0.0002,2]
[339229571,1727381439463,-2209.29408231,0.00020765,2]
[339229572,1727381439472,-300.0,0.0002077,2]
[339229573,1727381439482,-300.0,0.0002077,2]
[339229574,1727381439492,-219.0,0.00020771,2]
[339229575,1727381439501,-219.0,0.00020771,2]
[339229576,1727381439510,-219.0,0.00020771,2]
[339229577,1727381439520,-219.0,0.00020771,2]
[339229578,1727381439529,-219.0,0.00020771,2]
[339229579,1727381439537,-219.0,0.00020771,2]
[339229580,1727381439546,-219.0,0.00020771,2]
[339229581,1727381439555,-219.0,0.00020771,2]
[339229582,1727381439564,-219.0,0.00020771,2]
[339229583,1727381439573,-219.0,0.00020771,2]
[339229584,1727381439582,-219.0,0.00020771,2]
[339229585,1727381439591,-219.0,0.00020771,2]
[339229586,1727381439600,-219.0,0.00020771,2]
[339229587,1727381439609,-219.0,0.00020771,2]
[339229588,1727381439618,-219.0,0.00020771,2]
[339229589,1727381439627,-153.0,0.00020771,2]
[339229590,1727381439636,-219.0,0.00020773,2]
[339229591,1727381439645,-219.0,0.00020773,2]
[339229592,1727381439653,-219.0,0.00020773,2]
[339229593,1727381439662,-219.0,0.00020773,2]
[339229594,1727381439671,-219.0,0.00020773,2]
[339229595,1727381439680,-219.0,0.00020773,2]
[339229596,1727381439689,-219.0,0.00020773,2]
[339229597,1727381439699,-219.0,0.00020773,2]
[339229598,1727381439708,-219.0,0.00020773,2]
[339229599,1727381439717,-219.0,0.00020773,2]
[339229600,1727381439726,-219.0,0.00020773,2]
[339229601,1727381439735,-219.0,0.00020773,2]
[339229602,1727381439744,-219.0,0.00020773,2]
[339229603,1727381439753,-219.0,0.00020773,2]
[339229604,1727381439762,-153.0,0.00020774,2]
[339229605,1727381439772,-219.0,0.00020776,2]
[339229606,1727381439783,-219.0,0.00020776,2]
[339229607,1727381439793,-219.0,0.00020776,2]
[339229608,1727381439803,-219.0,0.00020776,2]
[339229609,1727381439812,-219.0,0.00020776,2]
[339229610,1727381439822,-219.0,0.00020776,2]
[339229611,1727381439949,-219.0,0.00020776,2]
[339229613,1727381439958,-219.0,0.00020776,2]
[339229614,1727381439967,-219.0,0.00020776,2]
[339229615,1727381439978,-219.0,0.00020776,2]
[339229616,1727381439987,-219.0,0.00020776,2]
[339229617,1727381439997,-219.0,0.00020776,2]
[339229618,1727381440007,-219.0,0.00020776,2]
[339229620,1727381440016,-219.0,0.00020776,2]
[339229621,1727381440028,-219.0,0.00020776,2]
[339229622,1727381440037,-219.0,0.00020776,2]
[339229623,1727381440047,-943.31657789,0.00020776,2]
[339229624,1727381440058,-153.0,0.00020776,2]
[339229625,1727381440067,-943.31657785,0.00020845,2]
[339229626,1727381440077,-343.71,0.00020856,3]
[339229627,1727381440088,-687.45,0.00020856,3]
[339229628,1727381440100,-500.0,0.00020864,2]
[339229629,1727381440110,-500.0,0.00020864,2]
[339229630,1727381440120,-500.0,0.00020864,2]
[339229631,1727381440130,-500.0,0.00020864,2]
[339229632,1727381440140,-500.0,0.00020864,2]
[339229633,1727381440151,-500.0,0.00020864,2]
[339229634,1727381440160,-500.0,0.00020864,2]
[339229635,1727381440169,-500.0,0.00020864,2]
[339229636,1727381440179,-500.0,0.00020864,2]
[339229637,1727381440189,-500.0,0.00020864,2]
[339229638,1727381440198,-500.0,0.00020864,2]
[339229639,1727381440208,-500.0,0.00020864,2]
[339229640,1727381440217,-500.0,0.00020864,2]
[339229641,1727381440227,-500.0,0.00020864,2]
[339229643,1727381440237,-500.0,0.00020864,2]
[339229645,1727381440246,-500.0,0.00020864,2]
[339229647,1727381440255,-500.0,0.00020864,2]
[339229648,1727381440265,-500.0,0.00020864,2]
[339229649,1727381440275,-500.0,0.00020864,2]
[339229651,1727381440284,-500.0,0.00020864,2]
[339229652,1727381440293,-500.0,0.00020864,2]
[339229653,1727381440304,-500.0,0.00020864,2]
[339229654,1727381440313,-500.0,0.00020864,2]
[339229655,1727381440322,-500.0,0.00020864,2]
[339229656,1727381440331,-500.0,0.00020864,2]
[339229657,1727381440340,-500.0,0.00020864,2]
[339229658,1727381440349,-500.0,0.00020864,2]
[339229659,1727381440358,-500.0,0.00020864,2]
[339229660,1727381440367,-500.0,0.00020864,2]
[339229661,1727381440376,-500.0,0.00020864,2]
[339229662,1727381440385,-630.55846255,0.00020864,2]
[339229663,1727381440394,-500.0,0.00020864,2]
[339229664,1727381440403,-500.0,0.00020864,2]
[339229665,1727381440412,-500.0,0.00020864,2]
[339229666,1727381440421,-500.0,0.00020864,2]
[339229667,1727381440431,-500.0,0.00020864,2]
[339229668,1727381440440,-500.0,0.00020864,2]
[339229670,1727381440449,-500.0,0.00020864,2]
[339229672,1727381440459,-500.0,0.00020864,2]
[339229673,1727381440467,-500.0,0.00020864,2]
[339229674,1727381440478,-500.0,0.00020864,2]
[339229675,1727381440487,-500.0,0.00020864,2]
[339229676,1727381440496,-500.0,0.00020864,2]
[339229677,1727381440505,-500.0,0.00020864,2]
[339229678,1727381440514,-54748.9726004,0.00020866,3]
[339229679,1727381440524,-189.18544747,0.00020867,7]
[339229680,1727381440534,-500.0,0.00020873,2]
[339229681,1727381440543,-1000.0,0.000209,2]
[339229682,1727381440552,-209.0432937,0.000209,2]
[339229683,1727381440561,-153.0,0.000209,2]
[339229684,1727381440570,-943.31657785,0.00020913,2]
[339229685,1727381440579,-943.31657785,0.00020982,2]
[339229686,1727381440587,-343.71,0.00020989,3]
[339229687,1727381440596,-500.0,0.00020998,2]
[339229688,1727381440605,-500.0,0.00020998,2]
[339229689,1727381440614,-494.57954203,0.00020998,2]
[339229690,1727381440623,-391.3528968,0.00020998,2]
[339229691,1727381440633,-266.1176372,0.00020998,2]
[339229692,1727381440642,-500.0,0.00020998,2]
[339229693,1727381440651,-500.0,0.00020998,2]
[339229694,1727381440660,-500.0,0.00020998,2]
[339229695,1727381440670,-500.0,0.00020998,2]
[339229696,1727381440679,-500.0,0.00020998,2]
[339229697,1727381440689,-500.0,0.00021,30]
[339229698,1727381440698,-500.0,0.00021,30]
[339229699,1727381440707,-711.85023632,0.00021,30]
[339229700,1727381440718,-500.0,0.00021,30]
[339229701,1727381440728,-607.21200268,0.00021,30]
[339229702,1727381440738,-3000.0,0.00021,2]
[339229703,1727381440749,-5000.0,0.00021,2]
[339229704,1727381440758,-500.0,0.00021,30]
[339229705,1727381440768,-500.0,0.00021,30]
[339229706,1727381440777,-500.0,0.00021,30]
[339229707,1727381440786,-500.0,0.00021,30]
[339229708,1727381440795,-500.0,0.00021,30]
[339229709,1727381440805,-500.0,0.00021,30]
[339229710,1727381440814,-500.0,0.00021,30]
[339229711,1727381440824,-500.0,0.00021,30]
[339229712,1727381440834,-508.1342584,0.00021,30]
[339229713,1727381440844,-3000.0,0.0002101,2]
[339229714,1727381440854,-3000.0,0.0002102,2]
[339229715,1727381440863,-3000.0,0.0002103,2]
[339229716,1727381440872,-3000.0,0.0002104,2]
[339229717,1727381440883,-3000.0,0.0002105,2]
[339229718,1727381440893,-943.31657785,0.0002105,2]
[339229719,1727381440902,-3000.0,0.0002106,2]
[339229720,1727381440911,-3000.0,0.0002107,2]
[339229721,1727381440920,-54748.9726004,0.0002107,3]
[339229722,1727381440929,-171.16061956,0.00021073,2]
[339229723,1727381440939,-502.07507827,0.00021073,2]
[339229724,1727381440948,-607.19326485,0.00021073,2]
[339229725,1727381440957,-500.0,0.00021073,2]
[339229726,1727381440967,-500.0,0.00021073,2]
[339229727,1727381440978,-500.0,0.00021073,2]
[339229728,1727381440987,-3000.0,0.0002108,2]
[339229729,1727381440997,-3000.0,0.0002109,2]
[339229730,1727381441007,-3000.0,0.000211,2]
[339229731,1727381441017,-3000.0,0.0002111,2]
[339229732,1727381441028,-3000.0,0.0002112,2]
[339229733,1727381441038,-3000.0,0.0002113,2]
[339229734,1727381441048,-3000.0,0.0002114,2]
[339229735,1727381441058,-3000.0,0.0002115,2]
[339229736,1727381441068,-3000.0,0.0002116,2]
[339229737,1727381441077,-3000.0,0.0002117,2]
[339229738,1727381441087,-3000.0,0.0002118,2]
[339229739,1727381441096,-3000.0,0.0002119,2]
[339229740,1727381441109,-3000.0,0.000212,2]
[339229741,1727381441118,-3000.0,0.0002121,2]
[339229742,1727381441128,-3000.0,0.0002122,2]
[339229743,1727381441139,-54748.9726004,0.0002122,3]
[339229744,1727381441150,-3000.0,0.0002123,2]
[339229745,1727381441161,-3000.0,0.0002124,2]
[339229746,1727381441173,-3000.0,0.0002125,2]
[339229747,1727381441183,-3000.0,0.0002126,2]
[339229748,1727381441192,-3000.0,0.0002127,2]
[339229749,1727381441203,-3000.0,0.0002128,2]
[339229750,1727381441213,-3000.0,0.0002129,2]
[339229751,1727381441223,-3000.0,0.000213,2]
[339229752,1727381441235,-3000.0,0.0002131,2]
[339229753,1727381441246,-3000.0,0.0002132,2]
[339229754,1727381441257,-3000.0,0.0002133,2]
[339229755,1727381441267,-600.0,0.00021339,3]
[339229756,1727381441277,-3000.0,0.0002134,2]
[339229757,1727381441286,-3000.0,0.0002135,2]
[339229758,1727381441296,-3000.0,0.0002136,2]
[339229759,1727381441305,-5486.301049,0.0002137,2]
[339229760,1727381441317,-465.00021457,0.00021392,2]
[339229761,1727381441327,-151.0,0.00021434,2]
[339229762,1727381441336,-151.0,0.00021434,2]
[339229763,1727381441345,-54748.9726004,0.00021434,3]
[339229764,1727381441356,-151.0,0.00021444,2]
[339229765,1727381441366,-151.0,0.00021444,2]
[339229766,1727381441375,-151.0,0.00021444,2]
[339229767,1727381441384,-151.0,0.00021444,2]
[339229768,1727381441393,-151.0,0.00021444,2]
[339229769,1727381441404,-151.0,0.00021444,2]
[339229770,1727381441414,-151.0,0.00021444,2]
[339229771,1727381441423,-151.0,0.00021444,2]
[339229772,1727381441432,-151.0,0.00021444,2]
[339229773,1727381441442,-153.0,0.00021644,2]
[339229774,1727381441451,-153.0,0.00021644,2]
[339229775,1727381441461,-153.0,0.00021644,2]
[339229776,1727381441470,-153.0,0.00021644,2]
[339229777,1727381441481,-153.0,0.00021726,2]
[339229778,1727381441490,-153.0,0.00021726,2]
[339229779,1727381441499,-153.0,0.00021726,2]
[339229780,1727381441508,-330.3289442,0.00021726,2]
[339229781,1727381441518,-153.0,0.00021808,2]
[339229782,1727381441528,-2073.09533415,0.00021889,2]
[339229783,1727381441537,-3848.0,0.00021899,2]
[339229784,1727381441547,-150.112234,0.000219,2]
[339229785,1727381441556,-625.82,0.00021917,2]
[339229786,1727381441566,-625.82,0.00021917,2]
[339229787,1727381441576,-625.82,0.00021917,2]
[339229788,1727381441586,-625.82,0.00021917,2]
[339229789,1727381441596,-625.82,0.00021917,2]
[339229790,1727381441605,-625.82,0.00021917,2]
[339229791,1727381441614,-625.82,0.00021917,2]
[339229792,1727381441623,-625.82,0.00021917,2]
[339229793,1727381441633,-625.82,0.00021917,2]
[339229794,1727381441643,-625.82,0.00021917,2]
[339229795,1727381441654,-625.82,0.00021917,2]
[339229796,1727381441664,-625.82,0.00021917,2]
[339229797,1727381441673,-625.82,0.00021917,2]
[339229798,1727381441683,-625.82,0.00021917,2]
[339229799,1727381441693,-625.82,0.00021917,2]
[339229800,1727381441702,-625.82,0.00021917,2]
[339229801,1727381441710,-625.82,0.00021917,2]
[339229802,1727381441722,-625.82,0.00021917,2]
[339229803,1727381441738,-625.82,0.00021917,2]
[339229804,1727381441748,-625.82,0.00021917,2]
[339229805,1727381441758,-625.82,0.00021917,2]
[339229806,1727381441767,-625.82,0.00021917,2]
[339229807,1727381441776,-625.82,0.00021917,2]
[339229808,1727381441786,-625.94,0.00021917,2]
[339229809,1727381441795,-500.0,0.00021917,2]
[339229810,1727381441805,-163.75661155,0.00021918,2]
[339229811,1727381441813,-150.0,0.00021918,2]
[339229812,1727381441823,-158.48573762,0.0002192,7]
[339229813,1727381441832,-158.48573762,0.0002192,7]
[339229814,1727381441841,-158.48573762,0.0002192,7]
[339229815,1727381441850,-158.48573762,0.0002192,7]
[339229816,1727381441859,-158.48573762,0.0002192,7]
[339229817,1727381441869,-158.48573762,0.0002192,7]
[339229818,1727381441879,-158.48573762,0.0002192,7]
[339229819,1727381441891,-158.48573762,0.0002192,7]
[339229820,1727381441901,-158.98,0.0002192,7]
[339229821,1727381441911,-176.24971131,0.00021955,2]
[339229822,1727381441921,-54748.9726004,0.00021959,3]
[339229823,1727381441930,-151.0,0.00021969,7]
[339229824,1727381441939,-151.0,0.00021969,7]
[339229825,1727381441949,-151.0,0.00021969,7]
[339229826,1727381441960,-151.0,0.00021969,7]
[339229827,1727381441969,-151.0,0.00021969,7]
[339229828,1727381441981,-151.0,0.00021969,7]